fUST/lending_fUST_20250115
["ID","MTS","AMOUNT","RATE_DAILY","PERIOD"]
[348929649,1736875840976,-500.0,0.00022191,3]
[348929650,1736875840985,-500.0,0.00022191,3]
[348929651,1736875840994,-9985.44,0.00022191,3]
[348929652,1736875841004,-1142.72,0.00022191,3]
[348929653,1736875841013,-500.0,0.00022191,3]
[348929654,1736875841023,-500.0,0.00022191,3]
[348929655,1736875841032,-850.55,0.00022191,3]
[348929656,1736875841041,-500.0,0.00022191,3]
[348929657,1736875841050,-500.0,0.00022191,3]
[348929658,1736875841060,-240.18,0.00022191,3]
[348929659,1736875841069,-1096.54,0.00022191,3]
[348929660,1736875841078,-778.11,0.00022191,3]
[348929661,1736875841088,-500.0,0.00022191,3]
[348929662,1736875841097,-500.0,0.00022191,3]
[348929663,1736875841106,-500.0,0.00022191,3]
[348929664,1736875841116,-500.0,0.00022328,3]
[348929665,1736875841125,-500.0,0.00022328,3]
[348929666,1736875841134,-300.75,0.00022328,3]
[348929667,1736875841144,-500.0,0.00022328,3]
[348929668,1736875841153,-500.0,0.00022328,3]
[348929669,1736875841162,-388.92,0.00022328,3]
[348929670,1736875841171,-626.87,0.00022328,3]
[348929671,1736875841180,-348.14,0.00022328,3]
[348929672,1736875841189,-744.68,0.00022328,3]
[348929673,1736875841198,-283.08,0.00022328,3]
[348929674,1736875841208,-618.88,0.00022328,3]
[348929675,1736875841217,-500.0,0.00022328,2]
[348929676,1736875841226,-500.0,0.00022328,3]
[348929677,1736875841235,-500.0,0.00022328,3]
[348929678,1736875841246,-500.0,0.00022328,3]
[348929679,1736875841255,-500.0,0.00022328,3]
[348929680,1736875841264,-500.0,0.00022328,3]
[348929681,1736875841274,-2585.79,0.00022328,2]
[348929682,1736875841284,-500.0,0.00022328,3]
[348929683,1736875841293,-500.0,0.00022328,3]
[348929684,1736875841302,-1753.51,0.00022328,3]
[348929685,1736875841312,-872.53,0.00022328,3]
[348929686,1736875841322,-4859.69,0.00022328,3]
[348929687,1736875841332,-500.0,0.00022328,3]
[348929688,1736875841342,-500.0,0.00022328,3]
[348929689,1736875841353,-509.53,0.00022328,3]
[348929690,1736875841363,-624.24,0.00022328,3]
[348929691,1736875841373,-500.0,0.00022328,3]
[348929692,1736875841384,-1306.08,0.00022328,3]
[348929693,1736875841393,-681.43,0.00022328,3]
[348929694,1736875841404,-500.0,0.00022328,3]
[348929695,1736875841413,-742.39,0.00022328,3]
[348929696,1736875841422,-500.0,0.00022328,3]
[348929697,1736875841432,-500.0,0.00022328,3]
[348929698,1736875841442,-9985.44,0.00022328,3]
[348929699,1736875841454,-1142.72,0.00022328,3]
[348929700,1736875841463,-500.0,0.00022328,3]
[348929701,1736875841473,-850.55,0.00022328,3]
[348929702,1736875841482,-500.0,0.00022328,3]
[348929703,1736875841493,-500.0,0.00022328,3]
[348929704,1736875841503,-1096.54,0.00022328,3]
[348929705,1736875841512,-778.11,0.00022328,3]
[348929706,1736875841521,-500.0,0.00022328,3]
[348929707,1736875841531,-500.0,0.00022328,3]
[348929708,1736875841541,-500.0,0.00022328,3]
[348929709,1736875841551,-152.88,0.00022465,2]
[348929710,1736875841560,-500.0,0.00022465,3]
[348929711,1736875841569,-500.0,0.00022465,3]
[348929712,1736875841579,-167.65,0.00022465,3]
[348929713,1736875841588,-155.85,0.00022465,3]
[348929714,1736875841598,-744.68,0.00022465,3]
[348929715,1736875841608,-500.0,0.00022465,2]
[348929716,1736875841619,-500.0,0.00022465,3]
[348929717,1736875841629,-500.0,0.00022465,3]
[348929718,1736875841639,-500.0,0.00022465,3]
[348929719,1736875841649,-500.0,0.00022465,3]
[348929720,1736875841658,-500.0,0.00022465,3]
[348929721,1736875841668,-2585.79,0.00022465,2]
[348929722,1736875841678,-500.0,0.00022465,3]
[348929723,1736875841687,-628.92,0.00022465,3]
[348929724,1736875841697,-1753.51,0.00022465,3]
[348929725,1736875841709,-872.53,0.00022465,3]
[348929726,1736875841719,-4859.69,0.00022465,3]
[348929727,1736875841728,-204.95,0.00022465,3]
[348929728,1736875841737,-500.0,0.00022465,3]
[348929729,1736875841747,-500.0,0.00022465,3]
[348929730,1736875841757,-1306.08,0.00022465,3]
[348929731,1736875841767,-681.43,0.00022465,3]
[348929732,1736875841777,-500.0,0.00022465,3]
[348929733,1736875841787,-742.39,0.00022465,3]
[348929734,1736875841797,-500.0,0.00022465,3]
[348929735,1736875841806,-500.0,0.00022465,3]
[348929736,1736875841816,-9985.44,0.00022465,3]
[348929737,1736875841825,-1142.72,0.00022465,3]
[348929738,1736875841834,-500.0,0.00022465,3]
[348929739,1736875841844,-850.55,0.00022465,3]
[348929740,1736875841853,-500.0,0.00022465,3]
[348929741,1736875841862,-602.56,0.00022465,3]
[348929742,1736875841871,-1096.54,0.00022465,3]
[348929743,1736875841882,-778.11,0.00022465,3]
[348929744,1736875841892,-500.0,0.00022465,3]
[348929745,1736875841901,-500.0,0.00022465,3]
[348929746,1736875841911,-500.0,0.00022465,3]
[348929747,1736875841921,-587.0,0.00022485,2]
[348929748,1736875841930,-875.10855581,0.00022494,2]
[348929749,1736875841940,-507.867,0.0002251,2]
[348929750,1736875841950,-1688.84323697,0.00022514,2]
[348929751,1736875841962,-500.0,0.00022521,2]
[348929752,1736875841971,-544.32877917,0.00022521,2]
[348929753,1736875841980,-1000.0,0.00022521,2]
[348929754,1736875841989,-89677.08499385,0.00022602,5]
[348929755,1736875841999,-8029.02728161,0.00022602,5]
[348929756,1736875842008,-567.75,0.00022602,3]
[348929757,1736875842017,-500.0,0.00022602,3]
[348929758,1736875842026,-744.68,0.00022602,3]
[348929759,1736875842035,-500.0,0.00022602,2]
[348929760,1736875842044,-500.0,0.00022602,3]
[348929761,1736875842053,-500.0,0.00022602,3]
[348929762,1736875842063,-500.0,0.00022602,3]
[348929763,1736875842072,-500.0,0.00022602,3]
[348929764,1736875842081,-500.0,0.00022602,3]
[348929765,1736875842090,-500.0,0.00022602,3]
[348929766,1736875842100,-2585.79,0.00022602,2]
[348929767,1736875842109,-500.0,0.00022602,3]
[348929768,1736875842118,-1753.51,0.00022602,3]
[348929769,1736875842127,-872.53,0.00022602,3]
[348929770,1736875842136,-4859.69,0.00022602,3]
[348929771,1736875842145,-500.0,0.00022602,3]
[348929772,1736875842154,-500.0,0.00022602,3]
[348929773,1736875842164,-1306.08,0.00022602,3]
[348929774,1736875842174,-681.43,0.00022602,3]
[348929775,1736875842183,-342.06,0.00022602,3]
[348929776,1736875842192,-742.39,0.00022602,3]
[348929777,1736875842201,-596.76,0.00022602,3]
[348929778,1736875842212,-500.0,0.00022602,3]
[348929779,1736875842222,-9985.44,0.00022602,3]
[348929780,1736875842231,-1142.72,0.00022602,3]
[348929781,1736875842240,-500.0,0.00022602,3]
[348929782,1736875842249,-850.55,0.00022602,3]
[348929783,1736875842258,-500.0,0.00022602,3]
[348929784,1736875842267,-1096.54,0.00022602,3]
[348929785,1736875842276,-778.11,0.00022602,3]
[348929786,1736875842286,-500.0,0.00022602,3]
[348929787,1736875842295,-500.0,0.00022602,3]
[348929788,1736875842304,-155.0434598,0.00022603,2]
[348929789,1736875842313,-301.80704095,0.00022639,2]
[348929790,1736875842323,-1200.0,0.00022732,2]
[348929791,1736875842332,-616.98200271,0.00022739,3]
[348929792,1736875842341,-744.68,0.00022739,3]
[348929793,1736875842350,-500.0,0.00022739,2]
[348929794,1736875842360,-500.0,0.00022739,3]
[348929795,1736875842369,-500.0,0.00022739,3]
[348929796,1736875842380,-500.0,0.00022739,3]
[348929797,1736875842389,-500.0,0.00022739,3]
[348929798,1736875842398,-500.0,0.00022739,3]
[348929799,1736875842408,-500.0,0.00022739,3]
[348929800,1736875842417,-2585.79,0.00022739,2]
[348929801,1736875842426,-500.0,0.00022739,3]
[348929802,1736875842436,-1753.51,0.00022739,3]
[348929803,1736875842445,-872.53,0.00022739,3]
[348929804,1736875842459,-4859.69,0.00022739,3]
[348929805,1736875842468,-500.0,0.00022739,3]
[348929806,1736875842477,-500.0,0.00022739,3]
[348929807,1736875842487,-1306.08,0.00022739,3]
[348929808,1736875842497,-681.43,0.00022739,3]
[348929809,1736875842506,-742.39,0.00022739,3]
[348929810,1736875842515,-500.0,0.00022739,3]
[348929811,1736875842526,-9985.44,0.00022739,3]
[348929812,1736875842535,-1142.72,0.00022739,3]
[348929813,1736875842545,-500.0,0.00022739,3]
[348929814,1736875842555,-850.55,0.00022739,3]
[348929815,1736875842564,-500.0,0.00022739,3]
[348929816,1736875842574,-1096.54,0.00022739,3]
[348929817,1736875842583,-778.11,0.00022739,3]
[348929818,1736875842592,-500.0,0.00022739,3]
[348929819,1736875842602,-500.0,0.00022739,3]
[348929820,1736875842611,-395.0,0.00022746,2]
[348929821,1736875842620,-7221.69,0.000228,14]
[348929822,1736875842630,-15773.37334705,0.0002287,2]
[348929823,1736875842639,-744.68,0.00022876,3]
[348929825,1736875842648,-500.0,0.00022876,2]
[348929826,1736875842658,-153.14119324,0.00022876,3]
[348929827,1736875842667,-500.0,0.00022876,3]
[348929828,1736875842675,-500.0,0.00022876,3]
[348929830,1736875842685,-500.0,0.00022876,3]
[348929832,1736875842694,-500.0,0.00022876,3]
[348929834,1736875842704,-500.0,0.00022876,3]
[348929835,1736875842714,-2585.79,0.00022876,2]
[348929836,1736875842723,-500.0,0.00022876,3]
[348929837,1736875842732,-1753.51,0.00022876,3]
[348929838,1736875842742,-872.53,0.00022876,3]
[348929839,1736875842751,-4859.69,0.00022876,3]
[348929840,1736875842762,-500.0,0.00022876,3]
[348929841,1736875842773,-178.5,0.00022876,3]
[348929842,1736875842783,-1306.08,0.00022876,3]
[348929843,1736875842792,-681.43,0.00022876,3]
[348929845,1736875842802,-742.39,0.00022876,3]
[348929847,1736875842811,-500.0,0.00022876,3]
[348929849,1736875842821,-9985.44,0.00022876,3]
[348929851,1736875842831,-1142.72,0.00022876,3]
[348929853,1736875842840,-500.0,0.00022876,3]
[348929855,1736875842850,-850.55,0.00022876,3]
[348929857,1736875842859,-509.30607903,0.00022876,3]
[348929858,1736875842869,-1096.54,0.00022876,3]
[348929859,1736875842878,-778.11,0.00022876,3]
[348929860,1736875842887,-500.0,0.00022876,3]
[348929861,1736875842896,-237.67393331,0.000229,2]
[348929862,1736875842906,-682.67767959,0.00022921,2]
[348929863,1736875842915,-606.70474889,0.00022988,2]
[348929864,1736875842924,-7438.69753278,0.00023,2]
[348929865,1736875842933,-1000.0,0.00023,23]
[348929866,1736875842943,-7438.69753278,0.00023,3]
[348929867,1736875842952,-8810.84509729,0.00023,14]
[348929868,1736875842963,-744.68,0.00023013,3]
[348929870,1736875842972,-500.0,0.00023013,2]
[348929871,1736875842982,-500.0,0.00023013,3]
[348929872,1736875842991,-500.0,0.00023013,3]
[348929873,1736875843000,-500.0,0.00023013,3]
[348929874,1736875843010,-500.0,0.00023013,3]
[348929875,1736875843019,-500.0,0.00023013,3]
[348929877,1736875843029,-2585.79,0.00023013,2]
[348929879,1736875843038,-500.0,0.00023013,3]
[348929881,1736875843048,-1753.51,0.00023013,3]
[348929883,1736875843058,-872.53,0.00023013,3]
[348929885,1736875843067,-4859.69,0.00023013,3]
[348929887,1736875843077,-500.0,0.00023013,3]
[348929889,1736875843086,-1306.08,0.00023013,3]
[348929891,1736875843095,-681.43,0.00023013,3]
[348929893,1736875843105,-742.39,0.00023013,3]
[348929895,1736875843114,-500.0,0.00023013,3]
[348929897,1736875843123,-9985.44,0.00023013,3]
[348929899,1736875843133,-1142.72,0.00023013,3]
[348929901,1736875843142,-500.0,0.00023013,3]
[348929903,1736875843152,-850.55,0.00023013,3]
[348929905,1736875843162,-1096.54,0.00023013,3]
[348929907,1736875843171,-778.11,0.00023013,3]
[348929909,1736875843181,-500.0,0.00023013,3]
[348929911,1736875843191,-2563.5,0.000231,14]
[348929913,1736875843201,-14453.73,0.000231,2]
[348929915,1736875843211,-744.68,0.0002315,3]
[348929918,1736875843221,-500.0,0.0002315,2]
[348929921,1736875843231,-500.0,0.0002315,3]
[348929937,1736875843339,-500.0,0.0002315,3]
[348929939,1736875843349,-500.0,0.0002315,3]
[348929941,1736875843359,-500.0,0.0002315,3]
[348929943,1736875843369,-500.0,0.0002315,3]
[348929945,1736875843378,-2585.79,0.0002315,2]
[348929947,1736875843387,-500.0,0.0002315,3]
[348929949,1736875843396,-1753.51,0.0002315,3]
[348929951,1736875843406,-872.53,0.0002315,3]
[348929953,1736875843415,-4859.69,0.0002315,3]
[348929955,1736875843425,-500.0,0.0002315,3]
[348929957,1736875843435,-1306.08,0.0002315,3]
[348929959,1736875843445,-681.43,0.0002315,3]
[348929961,1736875843459,-742.39,0.0002315,3]
[348929963,1736875843469,-500.0,0.0002315,3]
[348929965,1736875843478,-5980.49120767,0.0002315,3]
[348929968,1736875843495,-309.7139885,0.0002315,3]
[348929972,1736875843522,-500.0,0.00019924,2]
[348929974,1736875843533,-500.0,0.00019924,2]
[348929976,1736875843543,-659.16283166,0.00019924,2]
[348929987,1736875843633,-123.91328006,0.00019924,2]
[348929989,1736875843642,-500.0,0.00019924,2]
[348929991,1736875843651,-500.0,0.00019924,2]
[348929993,1736875843661,-500.0,0.00019924,2]
[348929995,1736875843670,-783.07611172,0.00019924,2]
[348929997,1736875843680,-500.0,0.00019924,2]
[348929999,1736875843689,-500.0,0.00019924,2]
[348930001,1736875843699,-500.0,0.00019924,2]
[348930003,1736875843709,-358.10924952,0.00019924,2]
[348930005,1736875843718,-500.0,0.00019924,2]
[348930007,1736875843727,-783.07611172,0.00019924,2]
[348930009,1736875843737,-500.0,0.00019924,2]
[348930010,1736875843748,-500.0,0.00019924,2]
[348930013,1736875843758,-500.0,0.00019924,2]
[348930015,1736875843768,-500.0,0.00019924,2]
[348930016,1736875843779,-500.0,0.00022602,3]
[348930019,1736875843790,-3695.23480383,0.0002315,3]
[348930020,1736875843800,-1142.72,0.0002315,3]
[348930022,1736875843809,-500.0,0.0002315,3]
[348930025,1736875843820,-850.55,0.0002315,3]
[348930027,1736875843829,-1096.54,0.0002315,3]
[348930029,1736875843839,-778.11,0.0002315,3]
[348930031,1736875843849,-500.0,0.0002315,3]
[348930033,1736875843859,-744.68,0.00023287,3]
[348930035,1736875843869,-500.0,0.00023287,2]
[348930036,1736875843878,-500.0,0.00023287,3]
[348930038,1736875843888,-500.0,0.00023287,3]
[348930041,1736875843899,-500.0,0.00023287,3]
[348930043,1736875843909,-500.0,0.00023287,3]
[348930045,1736875843918,-2585.79,0.00023287,2]
[348930047,1736875843927,-500.0,0.00023287,3]
[348930049,1736875843937,-1753.51,0.00023287,3]
[348930051,1736875843947,-872.53,0.00023287,3]
[348930053,1736875843957,-4859.69,0.00023287,3]
[348930055,1736875843966,-500.0,0.00023287,3]
[348930057,1736875843976,-1306.08,0.00023287,3]
[348930059,1736875843986,-681.43,0.00023287,3]
[348930061,1736875843995,-742.39,0.00023287,3]
[348930063,1736875844005,-500.0,0.00023287,3]
[348930065,1736875844015,-6002.57044315,0.00023287,3]
[348930067,1736875844028,-3982.86955685,0.00023287,3]
[348930069,1736875844037,-1142.72,0.00023287,3]
[348930071,1736875844047,-500.0,0.00023287,3]
[348930074,1736875844056,-850.55,0.00023287,3]
[348930076,1736875844066,-1096.54,0.00023287,3]
[348930078,1736875844075,-778.11,0.00023287,3]
[348930079,1736875844085,-500.0,0.00023287,3]
[348930082,1736875844095,-2000.0,0.000234,2]
[348930084,1736875844105,-744.68,0.00023424,3]
[348930086,1736875844116,-500.0,0.00023424,2]
[348930088,1736875844126,-500.0,0.00023424,3]
[348930090,1736875844136,-500.0,0.00023424,3]
[348930091,1736875844145,-500.0,0.00023424,3]
[348930092,1736875844154,-500.0,0.00023424,3]
[348930093,1736875844165,-2585.79,0.00023424,2]
[348930094,1736875844174,-500.0,0.00023424,3]
[348930095,1736875844184,-1753.51,0.00023424,3]
[348930096,1736875844194,-872.53,0.00023424,3]
[348930097,1736875844203,-4859.69,0.00023424,3]
[348930098,1736875844215,-500.0,0.00023424,3]
[348930099,1736875844224,-1306.08,0.00023424,3]
[348930100,1736875844234,-681.43,0.00023424,3]
[348930101,1736875844243,-742.39,0.00023424,3]
[348930102,1736875844253,-500.0,0.00023424,3]
[348930103,1736875844263,-1522.7358406,0.00023424,3]
[348930178,1736875845081,-783.07611172,0.00019924,2]
[348930180,1736875845092,-500.0,0.00019924,2]
[348930182,1736875845102,-500.0,0.00019924,2]
[348930184,1736875845112,-500.0,0.00019924,2]
[348930186,1736875845122,-783.07611172,0.00019924,2]
[348930188,1736875845132,-323.67030716,0.00019924,2]
[348930191,1736875845149,-176.32969284,0.00019924,2]
[348930193,1736875845159,-500.0,0.00019924,2]
[348930195,1736875845169,-346.88030716,0.00019924,2]
[348930197,1736875845181,-153.11969284,0.00019924,2]
[348930199,1736875845191,-500.0,0.00019924,2]
[348930201,1736875845200,-107.54401905,0.00019924,2]
[348930209,1736875845265,-675.53209267,0.00019924,2]
[348930211,1736875845274,-500.0,0.00019924,2]
[348930213,1736875845284,-500.0,0.00019924,2]
[348930215,1736875845293,-525.77622906,0.00019924,2]
[348930227,1736875845405,-783.07611172,0.00019924,2]
[348930229,1736875845415,-500.0,0.00019924,2]
[348930232,1736875845425,-500.0,0.00019924,2]
[348930234,1736875845435,-783.07611172,0.00019924,2]
[348930236,1736875845446,-201.57300671,0.00019924,2]
[348930238,1736875845460,-500.0,0.00019924,2]
[348930240,1736875845469,-783.07611172,0.00019924,2]
[348930242,1736875845480,-500.0,0.00019924,2]
[348930244,1736875845491,-500.0,0.00019924,2]
[348930247,1736875845501,-500.0,0.00019924,2]
[348930249,1736875845511,-500.0,0.00019924,2]
[348930251,1736875845520,-500.0,0.00019924,2]
[348930253,1736875845530,-783.07611172,0.00019924,2]
[348930255,1736875845540,-500.0,0.00019924,2]
[348930257,1736875845549,-500.0,0.00019924,2]
[348930259,1736875845558,-783.07611172,0.00019924,2]
[348930261,1736875845568,-500.0,0.00019924,2]
[348930263,1736875845577,-500.0,0.00019924,2]
[348930265,1736875845586,-783.07611172,0.00019924,2]
[348930267,1736875845595,-500.0,0.00019924,2]
[348930269,1736875845605,-500.0,0.00019924,2]
[348930270,1736875845615,-783.07611172,0.00019924,2]
[348930273,1736875845625,-500.0,0.00019924,2]
[348930275,1736875845634,-500.0,0.00019924,2]
[348930277,1736875845644,-783.07611172,0.00019924,2]
[348930279,1736875845654,-500.0,0.00019924,2]
[348930281,1736875845663,-500.0,0.00019924,2]
[348930283,1736875845673,-500.0,0.00019924,2]
[348930285,1736875845683,-783.07611172,0.00019924,2]
[348930287,1736875845692,-783.07611172,0.00019924,2]
[348930289,1736875845702,-500.0,0.00019924,2]
[348930291,1736875845713,-783.07611172,0.00019924,2]
[348930293,1736875845722,-500.0,0.00019924,2]
[348930295,1736875845732,-783.07611172,0.00019924,2]
[348930297,1736875845741,-500.0,0.00019924,2]
[348930299,1736875845751,-500.0,0.00019924,2]
[348930301,1736875845761,-783.07611172,0.00019924,2]
[348930303,1736875845770,-783.07611172,0.00019924,2]
[348930305,1736875845781,-500.0,0.00019924,2]
[348930307,1736875845791,-783.07611172,0.00019924,2]
[348930309,1736875845802,-500.0,0.00019924,2]
[348930311,1736875845812,-783.07611172,0.00019924,2]
[348930313,1736875845822,-500.0,0.00019924,2]
[348930315,1736875845833,-783.07611172,0.00019924,2]
[348930317,1736875845843,-500.0,0.00019924,2]
[348930319,1736875845855,-783.07611172,0.00019924,2]
[348930321,1736875845865,-500.0,0.00019924,2]
[348930323,1736875845875,-783.07611172,0.00019924,2]
[348930325,1736875845886,-500.0,0.00019924,2]
[348930328,1736875845896,-783.07611172,0.00019924,2]
[348930330,1736875845905,-500.0,0.00019924,2]
[348930332,1736875845915,-783.07611172,0.00019924,2]
[348930334,1736875845925,-500.0,0.00019924,2]
[348930336,1736875845935,-783.07611172,0.00019924,2]
[348930338,1736875845944,-162.65970698,0.00019924,2]
[348930340,1736875845956,-783.07611172,0.00019924,2]
[348930342,1736875845966,-500.0,0.00019924,2]
[348930344,1736875845976,-783.07611172,0.00019924,2]
[348930346,1736875845986,-500.0,0.00019924,2]
[348930348,1736875845995,-783.07611172,0.00019924,2]
[348930350,1736875846005,-783.07611172,0.00019924,2]
[348930352,1736875846017,-783.07611172,0.00019924,2]
[348930354,1736875846027,-500.0,0.00019924,2]
[348930356,1736875846037,-783.07611172,0.00019924,2]
[348930358,1736875846046,-500.0,0.00019924,2]
[348930360,1736875846056,-500.0,0.00019924,2]
[348930362,1736875846065,-783.07611172,0.00019924,2]
[348930364,1736875846075,-783.07611172,0.00019924,2]
[348930366,1736875846085,-500.0,0.00019924,2]
[348930368,1736875846095,-500.0,0.00019924,2]
[348930370,1736875846104,-783.07611172,0.00019924,2]
[348930372,1736875846113,-783.07611172,0.00019924,2]
[348930374,1736875846123,-783.07611172,0.00019924,2]
[348930376,1736875846133,-783.07611172,0.00019924,2]
[348930378,1736875846143,-783.07611172,0.00019924,2]
[348930380,1736875846152,-783.07611172,0.00019924,2]
[348930382,1736875846162,-783.07611172,0.00019924,2]
[348930384,1736875846172,-783.07611172,0.00019924,2]
[348930386,1736875846181,-783.07611172,0.00019924,2]
[348930388,1736875846191,-783.07611172,0.00019924,2]
[348930390,1736875846200,-783.07611172,0.00019924,2]
[348930393,1736875846211,-783.07611172,0.00019924,2]
[348930395,1736875846220,-783.07611172,0.00019924,2]
[348930398,1736875846229,-783.07611172,0.00019924,2]
[348930401,1736875846239,-783.07611172,0.00019924,2]
[348930403,1736875846248,-783.07611172,0.00019924,2]
[348930405,1736875846257,-783.07611172,0.00019924,2]
[348930407,1736875846267,-783.07611172,0.00019924,2]
[348930410,1736875846277,-500.0,0.00019924,2]
[348930413,1736875846286,-500.0,0.00021917,3]
[348930416,1736875846296,-500.0,0.00021917,3]
[348930419,1736875846305,-500.0,0.00021917,3]
[348930422,1736875846318,-500.0,0.00021917,3]
[348930425,1736875846327,-500.0,0.00021917,3]
[348930428,1736875846337,-500.0,0.00022054,3]
[348930431,1736875846347,-500.0,0.00022054,3]
[348930433,1736875846356,-500.0,0.00022054,3]
[348930435,1736875846366,-500.0,0.00022054,3]
[348930437,1736875846376,-500.0,0.00022054,3]
[348930439,1736875846385,-500.0,0.00022191,3]
[348930441,1736875846395,-500.0,0.00022191,3]
[348930443,1736875846404,-500.0,0.00022191,3]
[348930445,1736875846413,-500.0,0.00022191,3]
[348930447,1736875846423,-500.0,0.00022191,3]
[348930449,1736875846432,-500.0,0.00022328,3]
[348930451,1736875846441,-500.0,0.00022328,3]
[348930453,1736875846454,-500.0,0.00022328,3]
[348930455,1736875846464,-500.0,0.00022328,3]
[348930457,1736875846474,-500.0,0.00022328,3]
[348930459,1736875846484,-500.0,0.00022465,3]
[348930461,1736875846495,-500.0,0.00022465,3]
[348930463,1736875846504,-500.0,0.00022465,3]
[348930465,1736875846514,-500.0,0.00022465,3]
[348930467,1736875846524,-500.0,0.00022602,3]
[348930469,1736875846535,-500.0,0.00022602,3]
[348930471,1736875846545,-500.0,0.00022602,3]
[348930473,1736875846555,-500.0,0.00022739,3]
[348930475,1736875846564,-500.0,0.00022739,3]
[348930477,1736875846574,-405.35,0.00022739,3]
[348930479,1736875846583,-500.0,0.00022739,3]
[348930481,1736875846594,-2037.0,0.00022746,2]
[348930484,1736875846604,-500.0,0.00022876,3]
[348930485,1736875846613,-349.75,0.00022876,3]
[348930488,1736875846624,-394.39,0.00022876,3]
[348930490,1736875846633,-500.0,0.00022876,3]
[348930492,1736875846643,-500.0,0.00023013,3]
[348930494,1736875846653,-500.0,0.00023013,3]
[348930496,1736875846663,-1688.84323697,0.00023052,2]
[348930498,1736875846672,-500.0,0.0002315,3]
[348930500,1736875846682,-500.0,0.0002315,3]
[348930502,1736875846691,-401.10255105,0.00023287,3]
[348930504,1736875846701,-500.0,0.00023287,3]
[348930506,1736875846712,-8462.7041594,0.00023424,3]
[348930508,1736875846721,-1142.72,0.00023424,3]
[348930510,1736875846731,-500.0,0.00023424,3]
[348930512,1736875846741,-850.55,0.00023424,3]
[348930514,1736875846751,-1096.54,0.00023424,3]
[348930516,1736875846761,-778.11,0.00023424,3]
[348930518,1736875846771,-500.0,0.00023424,3]
[348930520,1736875846782,-295.72,0.00023424,3]
[348930522,1736875846792,-185.127203,0.00023452,2]
[348930524,1736875846802,-151.0,0.000235,10]
[348930526,1736875846811,-1500.0,0.00023522,2]
[348930528,1736875846821,-500.0,0.00023561,2]
[348930529,1736875846831,-500.0,0.00023561,3]
[348930531,1736875846840,-500.0,0.00023561,3]
[348930534,1736875846850,-500.0,0.00023561,3]
[348930536,1736875846860,-500.0,0.00023561,3]
[348930538,1736875846870,-2585.79,0.00023561,2]
[348930539,1736875846879,-438.36565528,0.00023561,3]
[348930542,1736875846889,-1753.51,0.00023561,3]
[348930544,1736875846899,-872.53,0.00023561,3]
[348930546,1736875846908,-4859.69,0.00023561,3]
[348930547,1736875846918,-611.56590325,0.00023561,3]
[348930549,1736875846927,-1306.08,0.00023561,3]
[348930551,1736875846937,-681.43,0.00023561,3]
[348930553,1736875846947,-742.39,0.00023561,3]
[348930555,1736875846957,-500.0,0.00023561,3]
[348930557,1736875846968,-9985.44,0.00023561,3]
[348930559,1736875846978,-1142.72,0.00023561,3]
[348930562,1736875846987,-500.0,0.00023561,3]
[348930564,1736875846997,-850.55,0.00023561,3]
[348930566,1736875847008,-1096.54,0.00023561,3]